{"text_format":"3","workbook":"xlsx","n_sheets":1,"sheets":["Angebot"],"not_rendered":{"defined_names":20},"read":"whole","date_system":"1900"}

{"sheet":"Angebot","index":0,"n_rows":41,"n_cols":8,"rows_kept":41,"merged":[[1,1,3,1],[1,4,1,7],[2,4,2,7],[3,5,3,7],[33,4,33,5],[34,4,36,5],[37,4,37,5],[38,4,38,5],[39,4,39,5],[40,4,40,5]]}
[]
[null,"IHR LOGO HIER EINFÜGEN",null,null,"KONSTRUKTIONSANGEBOT"]
[{"$nulls":4},"The Refurbished Home | 89 Pacific Ave, San Francisco, CA 78901"]
[{"$nulls":4},"T (0123) 456-7890","F (0123) 456-7891"]
[]
[null,"KUNDE",null,null,"MENGE","BESCHREIBUNG","EINZELPREIS","BETRAG"]
[null,"Maria Sullivan",null,null,10,"Trockenbau",{"v":165,"d":"165.00 €"},{"$f":"IFERROR(Einzelposten[[#This Row],[MENGE]]*Einzelposten[[#This Row],[EINZELPREIS]], \"\")","v":{"v":1650,"d":"1,650.00 €"}}]
[null,"KOSTENVORANSCHLAGSNR.",null,null,21,"Sperrholz",{"v":40,"d":"40.00 €"},{"$f":"IFERROR(Einzelposten[[#This Row],[MENGE]]*Einzelposten[[#This Row],[EINZELPREIS]], \"\")","v":{"v":840,"d":"840.00 €"}}]
[null,"C-1234",null,null,5,"Holzverbindungen",{"v":10.5,"d":"10.50 €"},{"$f":"IFERROR(Einzelposten[[#This Row],[MENGE]]*Einzelposten[[#This Row],[EINZELPREIS]], \"\")","v":{"v":52.5,"d":"52.50 €"}}]
[null,"DATUM",null,null,164,"10\"-Schrauben",{"v":2.75,"d":"2.75 €"},{"$f":"IFERROR(Einzelposten[[#This Row],[MENGE]]*Einzelposten[[#This Row],[EINZELPREIS]], \"\")","v":{"v":451,"d":"451.00 €"}}]
[null,{"$f":"TODAY()","v":"2023-03-23"},null,null,6,"Duschkopf",{"v":12,"d":"12.00 €"},{"$f":"IFERROR(Einzelposten[[#This Row],[MENGE]]*Einzelposten[[#This Row],[EINZELPREIS]], \"\")","v":{"v":72,"d":"72.00 €"}}]
[null,"ADRESSE",null,null,18,"Duschfliesen",{"v":5.5,"d":"5.50 €"},{"$f":"IFERROR(Einzelposten[[#This Row],[MENGE]]*Einzelposten[[#This Row],[EINZELPREIS]], \"\")","v":{"v":99,"d":"99.00 €"}}]
[null,"123 Avenue A",null,null,1,"Spiegel über Waschbecken",{"v":25,"d":"25.00 €"},{"$f":"IFERROR(Einzelposten[[#This Row],[MENGE]]*Einzelposten[[#This Row],[EINZELPREIS]], \"\")","v":{"v":25,"d":"25.00 €"}}]
[null,"ORT/BUNDESLAND/POSTLEITZAHL",{"$nulls":5},{"$f":"IFERROR(Einzelposten[[#This Row],[MENGE]]*Einzelposten[[#This Row],[EINZELPREIS]], \"\")","v":{"v":0,"d":"0.00 €"}}]
[null,"Burbank, CA 54321",{"$nulls":5},{"$f":"IFERROR(Einzelposten[[#This Row],[MENGE]]*Einzelposten[[#This Row],[EINZELPREIS]], \"\")","v":{"v":0,"d":"0.00 €"}}]
[null,"TELEFON",{"$nulls":5},{"$f":"IFERROR(Einzelposten[[#This Row],[MENGE]]*Einzelposten[[#This Row],[EINZELPREIS]], \"\")","v":{"v":0,"d":"0.00 €"}}]
[null,"(0502) 555-0123",{"$nulls":5},{"$f":"IFERROR(Einzelposten[[#This Row],[MENGE]]*Einzelposten[[#This Row],[EINZELPREIS]], \"\")","v":{"v":0,"d":"0.00 €"}}]
[null,"E-MAIL",{"$nulls":5},{"$f":"IFERROR(Einzelposten[[#This Row],[MENGE]]*Einzelposten[[#This Row],[EINZELPREIS]], \"\")","v":{"v":0,"d":"0.00 €"}}]
[null,"maria@contoso.com",{"$nulls":5},{"$f":"IFERROR(Einzelposten[[#This Row],[MENGE]]*Einzelposten[[#This Row],[EINZELPREIS]], \"\")","v":{"v":0,"d":"0.00 €"}}]
[{"$nulls":7},{"$f":"IFERROR(Einzelposten[[#This Row],[MENGE]]*Einzelposten[[#This Row],[EINZELPREIS]], \"\")","v":{"v":0,"d":"0.00 €"}}]
[{"$nulls":7},{"$f":"IFERROR(Einzelposten[[#This Row],[MENGE]]*Einzelposten[[#This Row],[EINZELPREIS]], \"\")","v":{"v":0,"d":"0.00 €"}}]
[null,"VERKÄUFER",{"$nulls":5},{"$f":"IFERROR(Einzelposten[[#This Row],[MENGE]]*Einzelposten[[#This Row],[EINZELPREIS]], \"\")","v":{"v":0,"d":"0.00 €"}}]
[null,"Josko Lucic",{"$nulls":5},{"$f":"IFERROR(Einzelposten[[#This Row],[MENGE]]*Einzelposten[[#This Row],[EINZELPREIS]], \"\")","v":{"v":0,"d":"0.00 €"}}]
[null,"PROJEKT",{"$nulls":5},{"$f":"IFERROR(Einzelposten[[#This Row],[MENGE]]*Einzelposten[[#This Row],[EINZELPREIS]], \"\")","v":{"v":0,"d":"0.00 €"}}]
[null,"Badezimmerumgestaltung",{"$nulls":5},{"$f":"IFERROR(Einzelposten[[#This Row],[MENGE]]*Einzelposten[[#This Row],[EINZELPREIS]], \"\")","v":{"v":0,"d":"0.00 €"}}]
[null,"ERSTELLT VON:",{"$nulls":5},{"$f":"IFERROR(Einzelposten[[#This Row],[MENGE]]*Einzelposten[[#This Row],[EINZELPREIS]], \"\")","v":{"v":0,"d":"0.00 €"}}]
[null,"Josko Lucic",{"$nulls":5},{"$f":"IFERROR(Einzelposten[[#This Row],[MENGE]]*Einzelposten[[#This Row],[EINZELPREIS]], \"\")","v":{"v":0,"d":"0.00 €"}}]
[{"$nulls":7},{"$f":"IFERROR(Einzelposten[[#This Row],[MENGE]]*Einzelposten[[#This Row],[EINZELPREIS]], \"\")","v":{"v":0,"d":"0.00 €"}}]
[{"$nulls":7},{"$f":"IFERROR(Einzelposten[[#This Row],[MENGE]]*Einzelposten[[#This Row],[EINZELPREIS]], \"\")","v":{"v":0,"d":"0.00 €"}}]
[null,"ZU HÄNDEN VON",{"$nulls":5},{"$f":"IFERROR(Einzelposten[[#This Row],[MENGE]]*Einzelposten[[#This Row],[EINZELPREIS]], \"\")","v":{"v":0,"d":"0.00 €"}}]
[null,"Maria Sullivan",{"$nulls":5},{"$f":"IFERROR(Einzelposten[[#This Row],[MENGE]]*Einzelposten[[#This Row],[EINZELPREIS]], \"\")","v":{"v":0,"d":"0.00 €"}}]
[null,"ZAHLUNGSBEDINGUNGEN",{"$nulls":5},{"$f":"IFERROR(Einzelposten[[#This Row],[MENGE]]*Einzelposten[[#This Row],[EINZELPREIS]], \"\")","v":{"v":0,"d":"0.00 €"}}]
[null,"30 Tage netto",{"$nulls":4},"ZWISCHENSUMME",{"$f":"SUBTOTAL(109,Einzelposten[BETRAG])","v":{"v":3189.5,"d":"3,189.50 €"}}]
[null,"FÄLLIGKEITSDATUM",null,null,"DIESES ANGEBOT UMFASST DIE AUFGEFÜHRTEN BEDINGUNGEN:",null,"STEUERSATZ ",{"v":0.0775,"d":"7.75%"}]
[null,{"$f":"TODAY()+30","v":"2023-04-22"},null,null,"Bedingungen hier eingeben",null,"MEHRWERTSTEUER ",{"$f":"IFERROR(Zwischensumme*Steuersatz, \"\")","v":{"v":247.18625,"d":"247.19 €"}}]
[{"$nulls":6},"SONSTIGES "]
[{"$nulls":6},"ERGEBNIS",{"$f":"IFERROR(Zwischensumme+H35+Sonstiges, \"\")","v":{"v":3436.68625,"d":"3,436.69 €"}}]
[]
[{"$nulls":4},"UNTEN UNTERZEICHNEN, UM DAS ANGEBOT ZU AKZEPTIEREN:"]
[]
[{"$nulls":4},"AUTORISIERTER VERTRETER",null,null,"DATUM"]